bitfinex/quotes_SOLUSD_20220117
["timestamp","ask_amount","ask_price","bid_price","bid_amount"]
[1642433109542,10.5085,142.79,142.71,43.7503625]
[1642433109742,10.5085,142.79,142.71,37.7503625]
[1642433109968,0.25,142.78,142.71,37.7503625]
[1642433110141,0.25,142.78,142.71,43.7503625]
[1642433111343,0.25,142.8,142.71,37.7503625]
[1642433111545,10.5095,142.78,142.71,37.7503625]
[1642433111746,10.5095,142.78,142.71,43.7503625]
[1642433111944,0.25,142.77,142.71,43.7503625]
[1642433112145,0.25,142.77,142.71,37.7503625]
[1642433112546,0.25,142.77,142.71,43.7503625]
[1642433112750,0.25,142.77,142.71,37.7503625]
[1642433113047,0.25,142.77,142.69,24.24513462]
[1642433113248,0.25,142.77,142.7,0.25]
[1642433113449,0.25,142.77,142.7,1.82463462]
[1642433113649,0.25,142.79,142.7,0.25]
[1642433113849,0.25,142.79,142.71,1.57463462]
[1642433114252,0.25,142.79,142.72,0.25]
[1642433114451,0.25,142.79,142.72,41.60979676]
[1642433115851,10.7586,142.79,142.72,0.25]
[1642433117153,16.08266208,142.79,142.72,0.25]
[1642433117477,16.08266208,142.79,142.71,7.57463462]
[1642433117679,16.08266208,142.79,142.71,6.0]
[1642433117979,16.08266208,142.79,142.69,28.6705]
[1642433118380,69.78,142.78,142.69,6.0]
[1642433118579,10.5116,142.76,142.69,6.0]
[1642433118779,0.25,142.75,142.68,30.746]
[1642433119779,21.24593792,142.75,142.68,30.746]
[1642433120580,10.5122,142.74,142.68,30.746]
[1642433120880,0.25,142.73,142.68,6.0]
[1642433121282,0.25,142.73,142.66,29.074]
[1642433122082,0.25,142.73,142.67,0.25]
[1642433123787,10.763,142.73,142.66,29.074]
[1642433125086,10.763,142.73,142.67,0.25]
[1642433125286,10.763,142.73,142.66,29.074]
[1642433128788,0.25,142.73,142.66,29.074]
[1642433129188,0.25,142.74,142.66,29.074]
[1642433130393,10.7624,142.74,142.66,29.074]
[1642433133191,10.7624,142.74,142.66,6.0]
[1642433133393,10.7624,142.74,142.63,52.81933647]
[1642433133596,5.32406208,142.72,142.63,52.81933647]
[1642433134796,15.83786208,142.72,142.63,52.81933647]
[1642433135095,15.83786208,142.72,142.63,54.39397109]
[1642433135297,0.25,142.71,142.63,54.39397109]
[1642433135896,0.25,142.71,142.64,0.25]
[1642433137598,10.7646,142.71,142.64,0.25]
[1642433138597,0.25,142.71,142.64,0.25]
[1642433138898,0.25,142.72,142.64,0.25]
[1642433139096,0.25,142.72,142.64,48.72880428]
[1642433139296,0.25,142.72,142.64,54.72880428]
[1642433144134,0.25,142.72,142.65,23.4241]
[1642433144335,0.25,142.74,142.66,0.25]
[1642433149040,10.5119,142.75,142.66,0.25]
[1642433149240,0.25,142.74,142.66,0.25]
[1642433149638,10.5119,142.75,142.66,0.25]
[1642433150539,10.5119,142.75,142.66,1.82463462]
[1642433150739,10.5119,142.75,142.67,40.68495899]
[1642433150940,23.4058,142.76,142.67,40.68495899]
[1642433151142,23.4058,142.76,142.68,0.25]
[1642433153245,10.5105,142.77,142.68,0.25]
[1642433153645,58.965,142.79,142.68,0.25]
[1642433153845,0.25,142.78,142.68,1.82896241]
[1642433154046,35.343,142.79,142.68,71.60896241]
[1642433154344,10.4508,142.81,142.69,8.44]
[1642433154548,7.31808762,142.84,142.7,22.7964]
[1642433154745,24.4744,142.83,142.71,8.44]
[1642433154946,24.4744,142.83,142.72,23.6179]
[1642433155149,24.4744,142.83,142.73,42.94930951]
[1642433155347,24.4744,142.83,142.74,0.25]
[1642433155548,34.9806,142.83,142.74,0.25]
[1642433156649,34.9806,142.83,142.73,6.0]
[1642433156850,0.25,142.82,142.69,24.7806]
[1642433157049,10.5105,142.78,142.65,8.44]
[1642433157248,10.5105,142.78,142.65,22.7648]
[1642433157249,23.5199,142.77,142.65,22.7648]
[1642433157450,20.9057754,142.76,142.65,22.7648]
[1642433157653,23.2305,142.75,142.65,22.7648]
[1642433157851,23.4805,142.75,142.65,22.7648]
[1642433159254,33.992,142.75,142.65,22.7648]
[1642433161856,33.992,142.75,142.68,0.55044879]
[1642433164260,23.2305,142.75,142.68,0.80044879]
[1642433164461,23.4476,142.8,142.68,0.80044879]
[1642433164661,23.0847,142.79,142.68,30.78634879]
[1642433165063,20.01466606,142.78,142.68,30.78634879]
[1642433165264,34.1768,142.77,142.68,7.82144879]
[1642433165562,34.1768,142.77,142.68,0.55044879]
[1642433165764,0.25,142.76,142.68,0.55044879]
[1642433165965,8.69,142.76,142.68,0.55044879]
[1642433166365,31.20303394,142.75,142.68,0.55044879]
[1642433166764,0.25,142.74,142.68,0.55044879]
[1642433167567,10.7624,142.74,142.68,0.55044879]
[1642433168366,22.9712,142.73,142.68,0.55044879]
[1642433168568,0.25,142.74,142.68,0.55044879]
[1642433169170,22.8655,142.75,142.68,0.55044879]
[1642433169472,8.44,142.78,142.68,0.55044879]
[1642433169670,22.7324,142.79,142.68,35.88944879]
[1642433170292,22.7324,142.79,142.68,25.38094879]
[1642433170692,100.9524,142.79,142.68,25.38094879]
[1642433171195,100.9524,142.79,142.68,25.13094879]
[1642433171694,0.25,142.78,142.68,25.13094879]
[1642433171892,0.25,142.78,142.68,70.94285701]
[1642433173594,10.5104,142.77,142.68,70.94285701]
[1642433173893,0.25,142.76,142.68,70.94285701]
[1642433176495,33.2414,142.79,142.69,0.25]
[1642433176694,33.2414,142.79,142.68,70.94285701]
[1642433177694,33.2414,142.79,142.69,0.25]
[1642433177994,0.25,142.78,142.69,0.25]
[1642433178295,10.5107,142.76,142.69,0.25]
[1642433178598,4.3863892,142.75,142.69,0.25]
[1642433178795,4.6363892,142.75,142.69,0.25]
[1642433179995,0.25,142.75,142.69,0.25]
[1642433186305,10.5107,142.76,142.69,0.25]
[1642433186503,10.5098,142.78,142.69,0.25]
[1642433186701,24.2461,142.79,142.69,0.25]
[1642433186902,24.0343,142.81,142.69,71.60896241]
[1642433187305,3.62321719,142.82,142.69,86.30896241]
[1642433187505,3.62321719,142.82,142.7,22.9604]
[1642433187704,3.62321719,142.82,142.71,8.44]
[1642433187906,3.62321719,142.82,142.72,94.7194]
[1642433188104,3.62321719,142.82,142.73,8.44]
[1642433188304,3.62321719,142.85,142.74,69.78]
[1642433188505,3.62321719,142.85,142.75,48.96245932]
[1642433188730,3.62321719,142.85,142.76,69.78]
[1642433189106,3.62321719,142.85,142.77,0.25]
[1642433189609,10.5039,142.86,142.77,0.25]
[1642433189808,23.5178,142.88,142.77,0.25]
[1642433190206,0.25,142.87,142.77,0.25]
[1642433192007,0.25,142.87,142.77,0.80044879]
[1642433192608,10.7528,142.87,142.77,0.80044879]
[1642433193310,10.7528,142.87,142.83,0.55044879]
[1642433197244,0.25,142.87,142.83,0.55044879]
[1642433197545,23.082,142.89,142.83,0.55044879]
[1642433197743,23.5412,142.92,142.83,0.55044879]
[1642433198345,23.5412,142.92,142.83,0.80044879]
[1642433198944,34.1613,142.95,142.83,0.80044879]
[1642433199146,47.9051,142.95,142.83,0.80044879]
[1642433199344,47.9051,142.95,142.84,1.57896241]
[1642433199547,47.9051,142.95,142.85,69.78]
[1642433199744,47.9051,142.95,142.86,43.36561032]
[1642433200149,47.9051,142.95,142.87,0.25]
[1642433200346,47.9051,142.95,142.87,7.195]
[1642433200948,395.23765265,142.97,142.87,76.975]
[1642433201148,3.62321719,142.99,142.87,84.55396241]
[1642433201349,22.899,143.0,142.87,84.55396241]
[1642433201548,22.899,143.0,142.87,93.25396241]
[1642433202551,22.899,143.0,142.87,103.74896241]
[1642433204749,34.3345,143.01,142.87,103.74896241]
[1642433204750,10.493,143.01,142.87,103.74896241]
[1642433205350,19.16519833,143.02,142.87,103.74896241]
[1642433205553,12.03477209,143.03,142.87,103.74896241]
[1642433205750,12.03477209,143.03,142.89,69.78]
[1642433205952,12.03477209,143.03,142.92,10.4912]
[1642433206352,0.25,143.02,142.93,0.25]
[1642433206655,10.4923,143.01,142.93,0.25]
[1642433206854,0.25,143.0,142.9,51.7522]
[1642433207053,0.25,143.0,142.9,6.0]
[1642433207254,0.25,143.0,142.89,8.44]
[1642433207454,0.25,143.0,142.87,8.44]
[1642433207656,10.4946,142.98,142.87,8.44]
[1642433207856,0.92364992,142.97,142.88,43.17737571]
[1642433208258,0.92364992,142.97,142.88,6.25]
[1642433208457,0.92364992,142.97,142.88,0.25]
[1642433209057,0.67364992,142.97,142.88,0.25]
[1642433209563,10.4962,142.96,142.88,0.25]
[1642433216764,10.4951,142.98,142.88,0.25]
[1642433216967,10.7451,142.98,142.88,70.03]
[1642433217368,10.7451,142.98,142.88,0.25]
[1642433217767,10.7451,142.98,142.88,1.82896241]
[1642433218370,10.7451,142.98,142.88,7.82896241]
[1642433218567,10.7451,142.98,142.88,12.32336241]
[1642433219771,0.25,142.98,142.88,12.32336241]
[1642433219972,0.25,142.98,142.88,19.44536241]
[1642433220171,0.25,142.98,142.88,27.88536241]
[1642433220771,24.5434,142.99,142.89,69.78]
[1642433220972,24.5434,142.99,142.9,10.4926]
[1642433221171,24.5434,142.99,142.9,10.7426]
[1642433221373,24.5434,142.99,142.9,18.32156241]
[1642433224877,24.5434,142.99,142.9,88.10156241]
[1642433226083,24.5434,142.99,142.9,18.32156241]
[1642433226283,24.5434,142.99,142.9,12.32156241]
[1642433226485,24.5434,142.99,142.9,12.07156241]
[1642433226687,0.25,142.98,142.89,24.5385]
[1642433227687,10.4956,142.97,142.89,24.5385]
[1642433227885,0.25,142.96,142.89,24.5385]
[1642433229290,1.96931513,142.97,142.9,0.25]
[1642433229489,1.96931513,142.97,142.9,44.11325856]
[1642433230509,1.96931513,142.96,142.9,44.11325856]
[1642433230912,1.96931513,142.96,142.9,0.25]
[1642433231410,1.96931513,142.96,142.94,0.55044879]
[1642433231612,6.06439994,142.95,142.94,0.55044879]
[1642433232511,6.06439994,142.95,142.9,0.25]
[1642433233012,6.06439994,142.95,142.89,24.5385]
[1642433233411,6.06439994,142.95,142.87,1.57896241]
[1642433233612,30.64819994,142.95,142.87,1.57896241]
[1642433234215,32.61751507,142.95,142.87,1.57896241]
[1642433234411,32.61751507,142.95,142.88,48.92985649]
[1642433235613,32.61751507,142.95,142.89,0.25]
[1642433235814,30.64819994,142.95,142.89,0.25]
[1642433237818,32.61751507,142.95,142.89,0.25]
[1642433238119,8.03371507,142.95,142.89,70.03]
[1642433238318,1.96931513,142.95,142.89,70.03]
[1642433238517,1.96931513,142.95,142.9,1.57896241]
[1642433238919,1.96931513,142.96,142.91,0.25]
[1642433240018,1.96931513,142.97,142.91,0.25]
[1642433240620,1.96931513,142.97,142.91,10.742]
[1642433240818,1.96931513,142.97,142.91,16.742]
[1642433241626,1.96931513,142.98,142.91,16.742]
[1642433244223,1.96931513,142.98,142.91,25.96296241]
[1642433244625,1.96931513,142.98,142.91,95.74296241]
[1642433245624,26.14001513,142.99,142.91,95.74296241]
[1642433246625,24.1707,142.99,142.91,95.74296241]
[1642433250732,24.1707,142.99,142.91,25.96296241]
[1642433250936,24.1707,142.99,142.91,18.32096241]
[1642433253233,27.62454135,142.99,142.91,18.32096241]
[1642433253433,27.62454135,142.99,142.89,35.0743]
[1642433253635,0.25,142.98,142.89,24.5808]
[1642433253834,7.926,142.98,142.87,11.96418981]
[1642433254035,22.8763,142.97,142.87,11.96418981]
[1642433254437,0.25,142.96,142.87,1.9452274]
[1642433254936,0.25,142.96,142.88,41.44789691]
[1642433255540,24.84561513,142.97,142.89,0.25]
[1642433256038,24.84561513,142.97,142.89,1.82896241]
[1642433256664,24.84561513,142.97,142.89,12.32266241]
[1642433256866,22.8763,142.97,142.89,82.10266241]
[1642433258469,22.8763,142.97,142.89,88.10266241]
[1642433258669,22.8763,142.97,142.89,82.10266241]
[1642433259169,1.96931513,142.98,142.89,82.10266241]
[1642433259370,1.96931513,142.98,142.89,120.47036241]
[1642433260368,26.16401513,143.0,142.89,120.47036241]
[1642433261371,24.3098,142.99,142.89,120.47036241]
[1642433261769,23.75935121,142.99,142.89,120.47036241]
[1642433266873,25.72866634,142.99,142.89,120.47036241]
[1642433275183,25.72866634,142.99,142.89,118.8914]
[1642433278088,25.72866634,142.99,142.89,49.1114]
[1642433279690,25.72866634,142.99,142.89,43.1114]
[1642433282295,25.72866634,142.99,142.89,49.1114]
[1642433283829,25.72866634,142.99,142.9,80.2728]
[1642433284428,25.72866634,142.99,142.91,0.25]
[1642433286930,1.96931513,142.98,142.91,0.25]
[1642433287433,1.96931513,142.98,142.91,10.7424]
[1642433287928,25.72866634,142.99,142.91,10.7424]
[1642433288329,25.72866634,142.99,142.91,35.5232]
[1642433288531,25.72866634,142.99,142.91,10.7424]
[1642433288930,1.96931513,142.98,142.91,10.7424]
[1642433297538,1.96931513,142.98,142.92,69.78]
[1642433297737,1.96931513,142.98,142.93,44.40552742]
[1642433297938,1.96931513,142.98,142.93,114.43552742]
[1642433299838,1.96931513,142.98,142.93,44.65552742]
[1642433306347,25.72866634,142.99,142.93,114.43552742]
[1642433307448,23.75935121,142.99,142.93,114.43552742]
[1642433307652,23.75935121,142.99,142.93,124.92662742]
[1642433309371,1.96931513,143.0,142.94,1.57896241]
[1642433309573,0.08131513,143.0,142.96,51.0]
[1642433309774,0.08131513,143.0,142.97,70.03]
[1642433310175,3.62321719,143.03,142.97,70.03]
[1642433310373,3.62321719,143.06,142.98,49.54466414]
[1642433310577,3.62321719,143.06,142.99,10.4871]
[1642433310776,3.62321719,143.06,142.99,10.7371]
[1642433311577,22.9345,143.07,142.99,10.7371]
[1642433311778,22.9345,143.07,142.99,34.9408]
[1642433319384,22.9345,143.07,142.99,104.7208]
[1642433320384,22.9345,143.07,142.99,120.73976241]
[1642433324585,24.822,143.09,142.99,120.73976241]
[1642433328590,22.6478,143.08,142.99,120.73976241]
[1642433329691,25.16362773,143.08,142.99,120.73976241]
[1642433330293,25.16362773,143.08,142.99,43.1308]
[1642433331594,25.16362773,143.08,143.0,0.25]
[1642433333500,35.65112773,143.08,143.0,0.25]
[1642433333898,35.65112773,143.08,142.99,53.58297226]
[1642433334098,0.25,143.07,142.99,53.58297226]
[1642433337199,0.25,143.07,142.99,10.4871]
[1642433337499,10.7381,143.07,142.97,101.1441]
[1642433337798,10.7381,143.07,142.98,0.25]
[1642433338199,10.7381,143.07,142.98,39.37874498]
[1642433338600,10.7381,143.07,142.98,49.86664498]
[1642433339900,23.6416,143.06,142.98,49.86664498]
[1642433340300,0.25,143.05,142.98,49.86664498]
[1642433340702,23.6416,143.06,142.98,119.64664498]
[1642433341311,0.25,143.05,142.98,119.64664498]
[1642433341703,23.6416,143.06,142.98,119.64664498]
[1642433343406,23.6416,143.06,142.98,10.7379]
[1642433345207,0.25,143.05,142.98,10.7379]
[1642433345608,0.25,143.05,142.98,16.7379]
[1642433346810,23.6416,143.06,142.98,10.7379]
[1642433356740,23.6416,143.06,142.98,80.5179]
[1642433358145,23.6416,143.06,142.98,86.5179]
[1642433360144,23.6416,143.06,142.98,94.9579]
[1642433361044,23.6416,143.06,142.98,94.7079]
[1642433362345,23.6416,143.06,142.99,0.25]
[1642433362548,23.6416,143.06,143.0,10.4859]
[1642433365051,0.25,143.05,143.0,10.4859]
[1642433366451,23.6416,143.06,143.0,10.4859]
[1642433369057,23.6416,143.06,142.99,93.6278]
[1642433370561,23.6416,143.06,142.99,104.1147]
[1642433372365,24.822,143.09,142.99,112.5547]
[1642433372763,24.822,143.09,142.99,118.5547]
[1642433377101,23.7982,143.08,142.99,118.5547]
[1642433380310,3.62321719,143.13,142.99,118.8147]
[1642433380509,24.5083,143.12,142.99,50.34867252]
[1642433380710,33.0803,143.12,142.99,48.7747]
[1642433380908,1.75619958,143.11,142.99,42.5247]
[1642433381111,22.77733274,143.1,142.99,42.5247]
[1642433381408,24.9716,143.09,142.99,32.0378]
[1642433381614,33.5806,143.09,142.97,43.87536586]
[1642433382014,1.75619958,143.08,142.97,43.87536586]
[1642433382412,0.25,143.07,142.97,43.87536586]
[1642433382612,0.25,143.07,142.98,69.78]
[1642433382813,0.25,143.07,142.99,0.25]
[1642433383014,24.9716,143.09,142.99,0.25]
[1642433383216,0.25,143.08,142.99,0.25]
[1642433383617,10.7373,143.08,142.99,33.6486]
[1642433383817,10.4873,143.08,142.99,33.6486]
[1642433384720,24.0154,143.07,142.99,33.6486]
[1642433385017,34.5035,143.07,142.99,0.25]
[1642433385419,0.25,143.06,142.98,0.25]
[1642433385617,0.25,143.06,142.97,60.36346586]
[1642433385820,0.25,143.06,142.97,54.36346586]
[1642433386519,10.739,143.06,142.97,54.36346586]
[1642433386719,23.0838,143.05,142.97,54.36346586]
[1642433387322,0.25,143.04,142.97,54.36346586]
[1642433388837,0.25,143.04,142.97,53.36346586]
[1642433389040,6.095,143.04,142.96,22.9083]
[1642433389240,6.095,143.04,142.97,0.25]
[1642433390043,6.095,143.04,142.97,40.0911021]
[1642433390342,0.25,143.04,142.97,40.0911021]
[1642433391642,0.25,143.04,142.97,50.5798021]
[1642433392242,23.0838,143.05,142.97,50.5798021]
[1642433392643,0.25,143.04,142.97,50.5798021]
[1642433393643,23.0838,143.05,142.97,50.5798021]
[1642433394243,35.65741719,143.1,142.98,69.78]
[1642433394443,23.0421,143.09,143.01,10.4856]
[1642433394743,21.5970298,143.09,143.02,41.94543859]
[1642433395146,0.25,143.08,143.02,41.94543859]
[1642433396844,21.5970298,143.09,143.02,41.94543859]
[1642433397245,0.25,143.08,143.02,41.94543859]
[1642433402152,21.5970298,143.09,143.02,41.94543859]
[1642433402552,32.0836298,143.09,143.02,41.94543859]
[1642433402955,32.0836298,143.09,142.99,34.9704]
[1642433403154,32.0836298,143.09,143.0,0.25]
[1642433403555,0.25,143.08,143.0,0.25]
[1642433403957,10.7373,143.08,143.0,10.7363]
[1642433404358,24.0066,143.07,143.0,16.7363]
[1642433404758,0.25,143.06,143.0,16.7363]
[1642433404958,0.25,143.06,143.0,66.00863781]
[1642433406158,0.25,143.06,143.0,6.25]
[1642433406358,0.25,143.06,143.0,0.25]
[1642433406560,0.25,143.06,143.0,6.25]
[1642433407158,0.25,143.06,143.0,0.25]
[1642433408761,0.25,143.06,143.0,43.90623036]
[1642433409561,0.25,143.06,143.03,32.81192335]
[1642433409761,6.06439994,143.05,143.03,32.81192335]
[1642433410363,23.5942,143.1,143.03,32.81192335]
[1642433410563,0.25,143.07,143.03,32.81192335]
[1642433411165,0.25,143.07,143.03,74.62419452]
[1642433411866,0.25,143.09,143.03,74.62419452]
[1642433412564,23.5942,143.1,143.03,85.10819452]
[1642433412764,46.67766381,143.14,143.04,0.25]
[1642433413564,10.4836,143.13,143.04,10.7331]
[1642433413791,35.22591719,143.14,143.04,10.7331]
[1642433413964,3.62321719,143.14,143.06,45.56563795]
[1642433414764,3.62321719,143.14,143.1,32.81192335]
[1642433414966,27.70571719,143.15,143.1,32.81192335]
[1642433415165,0.25,143.14,143.1,32.81192335]
[1642433417570,10.4831,143.14,143.1,32.81192335]
[1642433417769,0.25,143.13,143.1,32.81192335]
[1642433417969,6.06439994,143.12,143.1,32.81192335]
[1642433419772,6.06439994,143.12,143.1,16.40596369]
[1642433419972,6.06439994,143.12,143.08,48.30906895]
[1642433420171,6.06439994,143.12,143.11,16.40595966]
[1642433420373,6.31439994,143.12,143.11,16.40595966]
[1642433420972,6.06439994,143.12,143.11,16.40595966]
[1642433421395,3.03219997,143.12,143.11,16.40595966]
[1642433421796,10.4831,143.14,143.11,16.40595966]
[1642433422297,0.25,143.13,143.11,16.40595966]
[1642433423498,3.28219997,143.13,143.11,16.40595966]
[1642433425100,3.28219997,143.13,143.1,16.40596369]
[1642433425301,3.28219997,143.13,143.12,16.40595966]
[1642433425601,6.31439994,143.13,143.12,16.40595966]
[1642433426800,79.31439994,143.13,143.1,16.40596369]
[1642433427001,10.4861,143.12,143.1,16.40596369]
[1642433427300,36.25,143.11,143.1,16.40596369]
[1642433427801,47.14719997,143.11,143.1,16.40596369]
[1642433428002,55.58719997,143.11,143.1,8.90017159]
[1642433428202,10.4876,143.09,143.0,24.4256]
[1642433428501,0.25,143.08,143.0,24.4256]
[1642433428702,0.25,143.08,143.0,72.86583729]
[1642433429609,10.488,143.07,143.0,72.86583729]
[1642433429806,10.488,143.07,143.01,0.25]
[1642433430008,10.488,143.07,143.0,72.86583729]
[1642433430206,0.25,143.06,143.0,72.86583729]
[1642433430606,0.25,143.06,143.0,72.36583729]
[1642433431811,10.488,143.07,143.0,72.36583729]
[1642433432006,82.25194437,143.09,143.01,0.25]
[1642433432207,24.2744,143.08,143.01,0.25]
[1642433432408,24.5244,143.08,143.01,0.25]
[1642433433110,35.0117,143.08,143.01,0.25]
[1642433434812,35.0117,143.08,143.0,72.36583729]
[1642433437118,24.5244,143.08,143.0,82.85203729]
[1642433437322,24.5244,143.08,143.01,0.25]
[1642433437720,24.5244,143.08,143.0,72.36583729]
[1642433438923,35.0117,143.08,143.0,72.36583729]
[1642433439625,43.7607,143.08,143.0,72.36583729]
[1642433441026,43.7607,143.08,143.0,23.9256]
[1642433443529,45.74574437,143.08,143.0,23.9256]
[1642433444131,4.35526423,143.07,143.0,23.9256]
[1642433444331,10.4902,143.05,143.0,23.9256]
[1642433444533,89.1772,143.05,142.95,1.92877606]
[1642433444732,33.2566,143.04,142.95,1.92877606]
[1642433445031,35.01279958,143.04,142.95,1.92877606]
[1642433445232,24.72093535,143.03,142.95,1.92877606]
[1642433445433,24.72093535,143.03,142.94,1.92877606]
[1642433445434,8.44,143.02,142.94,1.92877606]
[1642433445633,41.42669958,143.02,142.94,1.92877606]
[1642433445832,69.78,143.01,142.94,1.92877606]
[1642433446031,8.44,143.0,142.94,1.92877606]
[1642433446231,54.0,142.99,142.91,3.98758978]
[1642433446436,69.78,142.97,142.91,3.98758978]
[1642433446636,8.44,142.96,142.91,3.98758978]
[1642433446834,8.44,142.96,142.83,38.90568978]
[1642433446835,15.038,142.96,142.83,38.90568978]
[1642433447236,27.29319958,142.96,142.83,28.40748978]
[1642433447435,69.78,142.95,142.83,28.40748978]
[1642433447636,8.44,142.94,142.83,28.40748978]
[1642433447836,22.96473577,142.93,142.83,75.68448226]
[1642433448035,29.53973577,142.93,142.83,75.68448226]
[1642433448235,70.03,142.92,142.83,75.68448226]
[1642433448438,78.47,142.92,142.83,75.68448226]
[1642433448635,78.47,142.92,142.83,71.69689248]
[1642433449444,69.78,142.9,142.83,71.69689248]
[1642433449642,76.629,142.9,142.83,47.27699248]
[1642433449841,0.25,142.89,142.83,47.27699248]
[1642433450540,10.7516,142.89,142.83,47.27699248]
[1642433451142,80.5316,142.89,142.82,23.1787]
[1642433451344,80.5316,142.89,142.78,33.5303]
[1642433451840,8.44,142.88,142.78,23.0278]
[1642433452042,10.5048,142.85,142.78,72.2902888]
[1642433452243,0.25,142.84,142.78,49.2624888]
[1642433453543,0.25,142.84,142.76,34.5453]
[1642433453743,10.7551,142.84,142.76,24.0412]
[1642433454146,19.1951,142.84,142.76,24.0412]
[1642433454546,19.1951,142.84,142.76,59.44286004]
[1642433455363,88.9751,142.84,142.76,59.44286004]
[1642433455563,19.1951,142.84,142.76,59.44286004]
[1642433456363,19.1951,142.84,142.74,34.0347]
[1642433456563,19.1951,142.84,142.74,23.5293]
[1642433456764,19.1951,142.84,142.7,8.44]
[1642433456963,42.9703,142.84,142.7,6.0]
[1642433457366,42.9703,142.84,142.7,34.95601959]
[1642433457763,42.9703,142.84,142.7,40.95601959]
[1642433458164,42.9703,142.84,142.69,48.0685]
[1642433458364,148.5103,142.84,142.64,11.33781734]
[1642433458564,22.8035,142.83,142.64,23.8135]
[1642433458764,10.5139,142.78,142.64,23.8135]
[1642433458966,8.44,142.77,142.64,23.8135]
[1642433459164,8.69,142.77,142.65,43.29068439]
[1642433459764,8.44,142.77,142.66,69.78]
[1642433459968,8.44,142.77,142.66,1.58024528]
[1642433460167,8.44,142.77,142.67,0.25]
[1642433460367,8.44,142.77,142.68,43.22682015]
[1642433460866,18.9501,142.77,142.68,43.22682015]
[1642433461067,0.25,142.76,142.68,43.22682015]
[1642433461268,15.509,142.76,142.68,43.22682015]
[1642433461870,85.289,142.76,142.68,43.22682015]
[1642433463674,10.5129,142.74,142.68,43.22682015]
[1642433463874,85.289,142.76,142.64,34.326]
[1642433463875,0.25,142.73,142.64,34.326]
[1642433464076,8.602,142.73,142.64,40.326]
[1642433464275,8.602,142.73,142.64,34.326]
[1642433464777,8.602,142.73,142.65,47.86960548]
[1642433465175,8.602,142.73,142.66,0.25]
[1642433465375,8.602,142.73,142.65,47.86960548]
[1642433465576,19.1151,142.73,142.65,53.86960548]
[1642433466574,19.1151,142.73,142.65,47.86960548]
[1642433466775,19.1151,142.73,142.65,53.86960548]
[1642433466974,19.1151,142.73,142.65,47.86960548]
[1642433467777,0.25,142.73,142.66,0.25]
[1642433468176,0.25,142.74,142.66,0.25]
[1642433468376,0.25,142.75,142.66,0.25]
[1642433469578,10.5124,142.74,142.66,0.25]
[1642433469776,0.25,142.73,142.66,0.25]
[1642433471976,0.25,142.73,142.66,10.7613]
[1642433472177,10.5113,142.76,142.66,10.7613]
[1642433472377,0.25,142.75,142.66,10.7613]
[1642433473877,10.7616,142.75,142.66,10.7613]
[1642433475079,19.2016,142.75,142.66,10.7613]
[1642433475482,18.9516,142.75,142.66,10.7613]
[1642433475682,24.8804,142.78,142.66,10.7613]
[1642433475883,24.8804,142.78,142.67,23.9724]
[1642433476082,24.8804,142.78,142.7,10.5077]
[1642433476282,8.44,142.82,142.71,35.89774693]
[1642433476483,31.2313,142.82,142.71,59.54324693]
[1642433477585,10.5075,142.81,142.71,70.05044693]
[1642433477788,10.5075,142.81,142.71,76.05044693]
[1642433477986,10.5075,142.81,142.71,70.05044693]
[1642433478286,10.5075,142.81,142.71,29.8955]
[1642433478789,10.509,142.79,142.71,23.8955]
[1642433479188,0.25,142.78,142.71,23.8955]
[1642433482794,10.7593,142.78,142.71,23.8955]
[1642433482992,17.3823,142.78,142.71,23.8955]
[1642433484694,87.1623,142.78,142.71,23.6455]
[1642433484894,87.1623,142.78,142.69,23.4607]